[Event "European Individual Women's Chess Championship 2017"]
[Site "Riga LAT"]
[Date "2017.04.21"]
[Round "10.25"]
[White "Hoolt, Sarah"]
[Black "Cosma, Elena-Luminita"]
[Result "1-0"]
[LiveChessVersion "1.4.8"]
[BlackElo "2316"]
[WhiteElo "2398"]
[ECO "C11"]
[TimeControl "40/5400:1800+30"]

1. e4 {[%clk 1:30:57]} e6 {[%clk 1:30:55]} 2. d4 {[%clk 1:31:24]} d5
{[%clk 1:31:20]} 3. Nc3 {[%clk 1:31:51]} Nf6 {[%clk 1:31:29]} 4. e5
{[%clk 1:32:16]} Nfd7 {[%clk 1:31:54]} 5. f4 {[%clk 1:32:42]} c5 {[%clk 1:32:19]}
6. Nf3 {[%clk 1:33:09]} Nc6 {[%clk 1:32:40]} 7. Be3 {[%clk 1:33:35]} a6
{[%clk 1:33:05]} 8. Qd2 {[%clk 1:33:44]} b5 {[%clk 1:33:29]} 9. Bd3
{[%clk 1:33:52]} b4 {[%clk 1:32:23]} 10. Na4 {[%clk 1:34:14]} cxd4
{[%clk 1:31:16]} 11. Nxd4 {[%clk 1:33:35]} Nxd4 {[%clk 1:31:41]} 12. Bxd4
{[%clk 1:33:57]} Qa5 {[%clk 1:25:43]} 13. b3 {[%clk 1:33:31]} Bb7
{[%clk 1:26:10]} 14. a3 {[%clk 1:14:34]} Bc6 {[%clk 1:18:53]} 15. axb4
{[%clk 1:11:33]} Bxb4 {[%clk 1:16:50]} 16. c3 {[%clk 1:11:57]} Be7
{[%clk 1:16:58]} 17. O-O {[%clk 1:11:39]} Qc7 {[%clk 1:16:44]} 18. b4
{[%clk 0:59:46]} Bb5 {[%clk 1:05:53]} 19. Bxb5 {[%clk 0:57:42]} axb5
{[%clk 1:06:19]} 20. Nc5 {[%clk 0:57:54]} O-O {[%clk 1:06:04]} 21. Nxd7
{[%clk 0:53:22]} Qxd7 {[%clk 1:06:28]} 22. Qd3 {[%clk 0:50:39]} Qc6
{[%clk 1:04:47]} 23. f5 {[%clk 0:49:11]} exf5 {[%clk 0:53:55]} 24. Qxf5
{[%clk 0:46:50]} g6 {[%clk 0:53:48]} 25. Qf3 {[%clk 0:31:36]} Rxa1
{[%clk 0:48:45]} 26. Rxa1 {[%clk 0:31:56]} Ra8 {[%clk 0:49:11]} 27. Rf1
{[%clk 0:27:48]} Qe6 {[%clk 0:49:22]} 28. Qe2 {[%clk 0:25:56]} Qc6
{[%clk 0:48:58]} 29. h3 {[%clk 0:25:34]} Qd7 {[%clk 0:40:45]} 30. e6
{[%clk 0:18:45]} Qxe6 {[%clk 0:40:14]} 31. Qxb5 {[%clk 0:19:09]} Bd6
{[%clk 0:37:05]} 32. Qd3 {[%clk 0:14:47]} Be5 {[%clk 0:30:40]} 33. Qe3
{[%clk 0:14:17]} Bxd4 {[%clk 0:24:32]} 34. Qxd4 {[%clk 0:14:41]} Ra2
{[%clk 0:24:51]} 35. Rd1 {[%clk 0:09:38]} Re2 {[%clk 0:22:53]} 36. Qxd5
{[%clk 0:08:23]} Qe3+ {[%clk 0:19:49]} 37. Kh1 {[%clk 0:08:40]} Qxc3
{[%clk 0:20:11]} 38. Rf1 {[%clk 0:06:59]} Qc7 {[%clk 0:17:17]} 39. b5
{[%clk 0:06:07]} Re6 {[%clk 0:15:40]} 40. Ra1 {[%clk 0:31:31]} Qc3
{[%clk 0:41:21]} 41. Rb1 {[%clk 0:28:26]} Re1+ {[%clk 0:22:06]} 42. Rxe1
{[%clk 0:28:47]} Qxe1+ {[%clk 0:22:34]} 43. Kh2 {[%clk 0:29:11]} Qb4
{[%clk 0:22:56]} 44. Qa8+ {[%clk 0:26:34]} Kg7 {[%clk 0:23:17]} 45. Qb8
{[%clk 0:26:44]} h5 {[%clk 0:08:05]} 46. b6 {[%clk 0:27:01]} Qc5 {[%clk 0:06:44]}
47. Qc7 {[%clk 0:17:00]} Qa5 {[%clk 0:07:11]} 48. Kg3 {[%clk 0:15:21]} g5
{[%clk 0:06:01]} 49. Kf3 {[%clk 0:14:12]} Qd5+ {[%clk 0:06:04]} 50. Ke3
{[%clk 0:14:18]} Qb3+ {[%clk 0:04:45]} 51. Kd4 {[%clk 0:14:20]} Qd1+
{[%clk 0:04:32]} 52. Kc5 {[%clk 0:14:22]} Qc2+ {[%clk 0:04:45]} 53. Kd6
{[%clk 0:14:03]} Qd3+ {[%clk 0:03:50]} 54. Ke7 {[%clk 0:12:48]} Qe4+
{[%clk 0:03:58]} 55. Kd8 {[%clk 0:12:53]} Qa8+ {[%clk 0:02:26]} 56. Qc8
{[%clk 0:10:35]} Qxg2 {[%clk 0:02:40]} 57. Qc3+ {[%clk 0:07:54]} Kg6
{[%clk 0:03:02]} 58. Kc7 {[%clk 0:07:45]} Qh2+ {[%clk 0:01:49]} 59. Kc8
{[%clk 0:08:02]} Qd6 {[%clk 0:01:52]} 60. b7 {[%clk 0:08:05]} Qe6+
{[%clk 0:01:16]} 61. Kc7 {[%clk 0:08:27]} Qe7+ {[%clk 0:01:36]} 62. Kb6
{[%clk 0:08:21]} Qd8+ {[%clk 0:02:01]} 63. Ka7 {[%clk 0:06:55]} Qd7
{[%clk 0:02:27]} 64. Qc4 {[%clk 0:06:23]} Qe7 {[%clk 0:02:36]} 65. Qd3+
{[%clk 0:05:09]} Kg7 {[%clk 0:01:53]} 66. Ka8 {[%clk 0:05:29]} Qc5
{[%clk 0:01:36]} 67. b8=Q {[%clk 0:05:36]} Qc6+ {[%clk 0:01:50]} 68. Qb7
{[%clk 0:05:08]} Qa4+ {[%clk 0:01:31]} 69. Kb8 {[%clk 0:05:25]} Qe8+
{[%clk 0:01:24]} 70. Qc8 {[%clk 0:05:15]} Qe5+ {[%clk 0:01:52]} 71. Qc7
{[%clk 0:05:32]} Qb2+ {[%clk 0:02:09]} 72. Kc8 1-0

[Event "European Individual Women's Chess Championship 2017"]
[Site "Riga LAT"]
[Date "2017.04.21"]
[Round "10.26"]
[White "Galojan, Lilit"]
[Black "Ovod, Evgenija"]
[Result "0-1"]
[LiveChessVersion "1.4.8"]
[BlackElo "2382"]
[WhiteElo "2290"]
[ECO "A40"]
[TimeControl "40/5400:1800+30"]

1. d4 {[%clk 1:30:55]} e6 {[%clk 1:30:53]} 2. c4 {[%clk 1:31:09]} b6
{[%clk 1:31:17]} 3. Nf3 {[%clk 1:28:35]} Bb7 {[%clk 1:31:41]} 4. Nc3
{[%clk 1:26:32]} Bb4 {[%clk 1:32:05]} 5. e3 {[%clk 1:25:43]} f5 {[%clk 1:32:29]}
6. Bd3 {[%clk 1:24:11]} Nf6 {[%clk 1:32:53]} 7. O-O {[%clk 1:23:59]} Bxc3
{[%clk 1:33:14]} 8. bxc3 {[%clk 1:24:25]} O-O {[%clk 1:33:40]} 9. a4
{[%clk 1:14:48]} d6 {[%clk 1:12:05]} 10. a5 {[%clk 0:48:16]} Nbd7
{[%clk 1:12:27]} 11. a6 {[%clk 0:23:08]} Be4 {[%clk 1:12:51]} 12. Be2
{[%clk 0:22:21]} Bxf3 {[%clk 1:11:30]} 13. Bxf3 {[%clk 0:22:21]} Rb8
{[%clk 1:11:56]} 14. Bc6 {[%clk 0:22:08]} e5 {[%clk 1:10:42]} 15. f3
{[%clk 0:16:37]} Qe7 {[%clk 1:01:21]} 16. Qa4 {[%clk 0:14:28]} Rbd8
{[%clk 0:56:11]} 17. Ra2 {[%clk 0:13:45]} e4 {[%clk 0:55:25]} 18. Raf2
{[%clk 0:08:21]} g6 {[%clk 0:55:42]} 19. Qb5 {[%clk 0:03:08]} Kg7
{[%clk 0:55:14]} 20. Bd5 {[%clk 0:02:33]} c5 {[%clk 0:54:14]} 21. Bb7
{[%clk 0:01:20]} h5 {[%clk 0:53:23]} 22. Bd2 {[%clk 0:01:04]} h4 {[%clk 0:45:11]}
23. Re2 {[%clk 0:00:32]} Rh8 {[%clk 0:34:49]} 24. Be1 {[%clk 0:00:40]} Rdf8
{[%clk 0:35:15]} 25. f4 {[%clk 0:00:53]} h3 {[%clk 0:34:55]} 26. g3
{[%clk 0:01:10]} Ng4 {[%clk 0:34:47]} 27. Bf2 {[%clk 0:01:03]} Ndf6
{[%clk 0:32:41]} 28. Rd1 {[%clk 0:01:04]} Rd8 {[%clk 0:28:49]} 29. Bc6
{[%clk 0:00:33]} g5 {[%clk 0:27:19]} 30. fxg5 Nh7 {[%clk 0:27:46]} 31. Kh1
{[%clk 0:00:42]} Nxg5 {[%clk 0:28:08]} 32. Bg1 {[%clk 0:00:40]} Nf3
{[%clk 0:27:46]} 33. Bd5 {[%clk 0:00:32]} Rh6 {[%clk 0:25:21]} 34. Qc6
{[%clk 0:00:50]} Rg6 {[%clk 0:25:45]} 35. Qb7 {[%clk 0:00:41]} Kf6
{[%clk 0:18:44]} 36. Bc6 Rg7 {[%clk 0:17:30]} 37. Ba4 {[%clk 0:00:35]} Qxb7
{[%clk 0:14:55]} 38. axb7 {[%clk 0:01:04]} Rxb7 {[%clk 0:15:22]} 39. Ra1
{[%clk 0:00:34]} Rc7 {[%clk 0:11:29]} 40. Bb5 {[%clk 0:30:54]} cxd4
{[%clk 0:40:55]} 41. exd4 {[%clk 0:28:59]} d5 {[%clk 0:40:36]} 42. Be3
{[%clk 0:26:28]} Nxe3 {[%clk 0:33:10]} 43. Rxe3 {[%clk 0:26:55]} f4
{[%clk 0:33:36]} 44. Rxf3 {[%clk 0:19:53]} exf3 {[%clk 0:34:02]} 45. Kg1
{[%clk 0:20:20]} fxg3 {[%clk 0:30:06]} 46. hxg3 {[%clk 0:20:40]} dxc4
{[%clk 0:30:32]} 47. Kf2 {[%clk 0:21:05]} Rd5 {[%clk 0:25:33]} 48. Be8
{[%clk 0:19:47]} Rc8 {[%clk 0:23:38]} 49. Re1 {[%clk 0:19:59]} h2
{[%clk 0:24:01]} 50. Ba4 {[%clk 0:20:26]} Rh8 {[%clk 0:24:13]} 51. Rh1
{[%clk 0:20:52]} Ra5 {[%clk 0:24:30]} 52. Bc6 {[%clk 0:20:45]} Ra3
{[%clk 0:24:35]} 53. Kxf3 {[%clk 0:20:38]} Rxc3+ {[%clk 0:24:56]} 54. Kf4
{[%clk 0:19:56]} Rd3 {[%clk 0:25:07]} 0-1

[Event "European Individual Women's Chess Championship 2017"]
[Site "Riga LAT"]
[Date "2017.04.21"]
[Round "10.27"]
[White "Charochkina, Daria"]
[Black "Fuchs, Judith"]
[Result "1-0"]
[LiveChessVersion "1.4.8"]
[BlackElo "2274"]
[WhiteElo "2381"]
[ECO "A21"]
[TimeControl "40/5400:1800+30"]

1. c4 {[%clk 1:30:59]} e5 {[%clk 1:30:52]} 2. Nc3 {[%clk 1:31:25]} Bb4
{[%clk 1:31:16]} 3. Nd5 {[%clk 1:31:50]} Bc5 {[%clk 1:31:41]} 4. Nf3
{[%clk 1:31:53]} c6 {[%clk 1:31:18]} 5. Nc3 {[%clk 1:31:46]} d6 {[%clk 1:30:59]}
6. e3 {[%clk 1:31:49]} Bb4 {[%clk 1:30:38]} 7. Qb3 {[%clk 1:30:42]} Na6
{[%clk 1:23:37]} 8. a3 {[%clk 1:30:03]} Ba5 {[%clk 1:20:27]} 9. d4
{[%clk 1:30:14]} Qe7 {[%clk 1:18:57]} 10. Be2 {[%clk 1:29:33]} Bg4
{[%clk 1:12:46]} 11. c5 {[%clk 1:25:54]} exd4 {[%clk 1:01:51]} 12. exd4
{[%clk 1:02:39]} Bxf3 {[%clk 0:51:57]} 13. gxf3 {[%clk 1:02:07]} dxc5
{[%clk 0:51:13]} 14. d5 {[%clk 1:02:26]} Nf6 {[%clk 0:34:04]} 15. dxc6
{[%clk 1:02:08]} O-O {[%clk 0:28:24]} 16. Be3 {[%clk 1:00:43]} Rab8
{[%clk 0:26:55]} 17. O-O {[%clk 0:57:12]} Bxc3 {[%clk 0:23:27]} 18. bxc3
{[%clk 0:56:16]} b5 {[%clk 0:21:59]} 19. a4 {[%clk 0:56:35]} c4 {[%clk 0:19:12]}
20. Qa3 {[%clk 0:56:54]} b4 {[%clk 0:18:50]} 21. cxb4 {[%clk 0:56:55]} Nxb4
{[%clk 0:18:57]} 22. Bxc4 {[%clk 0:56:18]} Rfc8 {[%clk 0:15:06]} 23. Rfe1
{[%clk 0:38:44]} Qc7 {[%clk 0:14:11]} 24. Rac1 {[%clk 0:38:30]} a5
{[%clk 0:12:35]} 25. Bb5 {[%clk 0:26:39]} Nfd5 {[%clk 0:12:03]} 26. Bc5
{[%clk 0:22:57]} Qf4 {[%clk 0:10:12]} 27. Rc4 {[%clk 0:22:21]} Qf5
{[%clk 0:09:47]} 28. Bd6 {[%clk 0:20:24]} Rb6 {[%clk 0:08:29]} 29. Bxb4
{[%clk 0:14:56]} axb4 {[%clk 0:08:27]} 30. Qc1 {[%clk 0:14:44]} h5
{[%clk 0:07:31]} 31. Qd2 {[%clk 0:08:08]} Qxf3 {[%clk 0:05:39]} 32. Rd4
{[%clk 0:08:34]} Rd8 {[%clk 0:03:28]} 33. Qd3 {[%clk 0:06:02]} 1-0

[Event "European Individual Women's Chess Championship 2017"]
[Site "Riga LAT"]
[Date "2017.04.21"]
[Round "10.28"]
[White "Papp, Petra"]
[Black "Isgandarova, Khayala"]
[Result "1/2-1/2"]
[LiveChessVersion "1.4.8"]
[BlackElo "2211"]
[WhiteElo "2378"]
[ECO "C11"]
[TimeControl "40/5400:1800+30"]

1. e4 {[%clk 1:30:56]} e6 {[%clk 1:30:26]} 2. d4 {[%clk 1:31:11]} d5
{[%clk 1:30:42]} 3. Nc3 {[%clk 1:31:31]} Nf6 {[%clk 1:31:03]} 4. e5
{[%clk 1:31:47]} Nfd7 {[%clk 1:31:28]} 5. f4 {[%clk 1:32:10]} c5 {[%clk 1:31:54]}
6. Nf3 {[%clk 1:32:33]} Nc6 {[%clk 1:32:14]} 7. Be3 {[%clk 1:32:55]} Be7
{[%clk 1:32:34]} 8. Qd2 {[%clk 1:32:12]} b6 {[%clk 1:32:24]} 9. Nd1
{[%clk 1:29:15]} O-O {[%clk 1:18:29]} 10. c3 {[%clk 1:28:52]} f6 {[%clk 1:18:24]}
11. Bd3 {[%clk 1:21:10]} f5 {[%clk 1:12:19]} 12. O-O {[%clk 1:18:41]} cxd4
{[%clk 1:11:09]} 13. Nxd4 {[%clk 1:13:16]} Nxd4 {[%clk 1:10:23]} 14. cxd4
{[%clk 1:13:32]} Nb8 {[%clk 1:10:44]} 15. Qe2 {[%clk 1:09:24]} Nc6
{[%clk 1:02:59]} 16. Bb5 {[%clk 1:06:03]} Bd7 {[%clk 1:01:35]} 17. a3
{[%clk 1:00:05]} Na5 {[%clk 1:01:09]} 1/2-1/2

[Event "European Individual Women's Chess Championship 2017"]
[Site "Riga LAT"]
[Date "2017.04.21"]
[Round "10.29"]
[White "Zaksaite, Salomeja"]
[Black "Arakhamia-Grant, Ketevan"]
[Result "1/2-1/2"]
[LiveChessVersion "1.4.8"]
[BlackElo "2374"]
[WhiteElo "2262"]
[ECO "B46"]
[TimeControl "40/5400:1800+30"]

1. e4 {[%clk 1:30:58]} c5 {[%clk 1:30:51]} 2. Nf3 {[%clk 1:31:18]} e6
{[%clk 1:31:14]} 3. d4 {[%clk 1:31:44]} cxd4 {[%clk 1:31:39]} 4. Nxd4
{[%clk 1:32:11]} Nc6 {[%clk 1:32:00]} 5. Nc3 {[%clk 1:32:30]} a6 {[%clk 1:32:18]}
6. Be2 {[%clk 1:31:12]} d6 {[%clk 1:32:13]} 7. O-O {[%clk 1:30:37]} Nf6
{[%clk 1:32:32]} 8. Be3 {[%clk 1:30:23]} Be7 {[%clk 1:32:33]} 9. f4
{[%clk 1:30:42]} O-O {[%clk 1:32:37]} 10. Kh1 {[%clk 1:29:01]} Bd7
{[%clk 1:18:25]} 11. Qe1 {[%clk 1:25:19]} b5 {[%clk 1:18:00]} 12. a3
{[%clk 1:22:17]} Nxd4 {[%clk 1:15:35]} 13. Bxd4 {[%clk 1:22:42]} Bc6
{[%clk 1:15:54]} 14. Qg3 {[%clk 1:22:51]} g6 {[%clk 1:14:47]} 15. Bd3
{[%clk 1:18:28]} Qb8 {[%clk 1:01:09]} 16. Rae1 {[%clk 1:09:50]} b4
{[%clk 0:56:56]} 17. Nd1 {[%clk 1:07:59]} Nh5 {[%clk 0:42:50]} 18. Qh3
{[%clk 1:02:04]} e5 {[%clk 0:42:02]} 19. fxe5 {[%clk 1:01:11]} dxe5
{[%clk 0:42:26]} 20. Be3 {[%clk 1:00:57]} Nf4 {[%clk 0:37:28]} 21. Bxf4
{[%clk 0:53:46]} exf4 {[%clk 0:37:53]} 22. e5 {[%clk 0:53:52]} Bg5
{[%clk 0:34:28]} 23. Qg4 {[%clk 0:48:19]} Qd8 {[%clk 0:22:20]} 24. axb4
{[%clk 0:45:21]} Rb8 {[%clk 0:21:51]} 25. Nf2 {[%clk 0:42:26]} Rxb4
{[%clk 0:21:08]} 26. Be4 {[%clk 0:33:52]} Bd7 {[%clk 0:19:51]} 27. Qe2
{[%clk 0:33:09]} Rxb2 {[%clk 0:09:16]} 28. Qxa6 {[%clk 0:31:12]} Bb5
{[%clk 0:00:51]} 29. Qa3 {[%clk 0:29:04]} Qd4 {[%clk 0:00:41]} 30. Bd3
{[%clk 0:17:27]} Bxd3 {[%clk 0:00:40]} 31. Qxd3 {[%clk 0:17:09]} Rd8
{[%clk 0:00:42]} 32. Ne4 {[%clk 0:13:50]} Qxe5 {[%clk 0:00:33]} 33. Qc4
{[%clk 0:12:29]} Bh6 {[%clk 0:00:33]} 34. Qc6 {[%clk 0:09:41]} Kg7
{[%clk 0:00:37]} 35. Nf2 {[%clk 0:08:14]} Qf6 {[%clk 0:00:34]} 36. Qxf6+
{[%clk 0:06:24]} Kxf6 {[%clk 0:01:02]} 37. Ng4+ {[%clk 0:06:47]} Kg7
{[%clk 0:01:26]} 38. Nxh6 {[%clk 0:07:12]} Kxh6 {[%clk 0:01:23]} 39. Rxf4
{[%clk 0:07:27]} Rxc2 {[%clk 0:00:38]} 40. Rxf7 {[%clk 0:37:21]} Rdd2
{[%clk 0:30:48]} 41. Rf3 {[%clk 0:31:15]} Rxg2 {[%clk 0:24:30]} 42. Rh3+
{[%clk 0:30:27]} Kg7 {[%clk 0:24:41]} 43. Re7+ {[%clk 0:30:40]} Kf6
{[%clk 0:24:58]} 44. Rhxh7 {[%clk 0:29:33]} Rxh2+ {[%clk 0:19:46]} 45. Rxh2
{[%clk 0:29:40]} Rc1+ {[%clk 0:19:57]} 46. Kg2 {[%clk 0:30:05]} Kxe7
{[%clk 0:20:23]} 47. Kg3 {[%clk 0:30:20]} Kf6 {[%clk 0:20:40]} 48. Ra2
{[%clk 0:30:39]} Rc3+ {[%clk 0:20:02]} 49. Kg4 {[%clk 0:30:58]} Rc4+
{[%clk 0:20:25]} 50. Kg3 {[%clk 0:31:23]} Kg5 {[%clk 0:19:20]} 51. Ra5+
{[%clk 0:31:39]} Kh6 {[%clk 0:19:39]} 52. Rb5 {[%clk 0:31:57]} g5
{[%clk 0:18:18]} 53. Ra5 {[%clk 0:32:01]} Kh5 {[%clk 0:18:36]} 54. Ra3
{[%clk 0:31:05]} Rg4+ {[%clk 0:18:28]} 55. Kh3 {[%clk 0:31:26]} Re4
{[%clk 0:13:47]} 56. Rb3 {[%clk 0:31:46]} Re5 {[%clk 0:13:20]} 57. Kg3
{[%clk 0:31:54]} Ra5 {[%clk 0:09:57]} 58. Rc3 {[%clk 0:31:38]} g4
{[%clk 0:09:22]} 59. Rb3 {[%clk 0:31:22]} Kg5 {[%clk 0:09:34]} 60. Rc3
{[%clk 0:31:38]} Rb5 {[%clk 0:09:44]} 1/2-1/2

[Event "European Individual Women's Chess Championship 2017"]
[Site "Riga LAT"]
[Date "2017.04.21"]
[Round "10.30"]
[White "Calzetta Ruiz, Monica"]
[Black "Arabidze, Meri"]
[Result "0-1"]
[LiveChessVersion "1.4.8"]
[BlackElo "2373"]
[WhiteElo "2257"]
[ECO "C91"]
[TimeControl "40/5400:1800+30"]

1. e4 {[%clk 1:30:27]} e5 {[%clk 1:30:55]} 2. Nf3 {[%clk 1:30:53]} Nc6
{[%clk 1:31:20]} 3. Bb5 {[%clk 1:31:18]} a6 {[%clk 1:31:45]} 4. Ba4
{[%clk 1:31:44]} Nf6 {[%clk 1:32:09]} 5. O-O {[%clk 1:31:54]} Be7
{[%clk 1:32:33]} 6. Re1 {[%clk 1:32:18]} b5 {[%clk 1:32:46]} 7. Bb3
{[%clk 1:32:43]} d6 {[%clk 1:33:03]} 8. c3 {[%clk 1:33:00]} O-O {[%clk 1:33:17]}
9. d4 {[%clk 1:33:25]} Bg4 {[%clk 1:32:24]} 10. d5 {[%clk 1:33:47]} Na5
{[%clk 1:29:51]} 11. Bc2 {[%clk 1:34:10]} Nc4 {[%clk 1:27:31]} 12. h3
{[%clk 1:33:24]} Bd7 {[%clk 1:26:06]} 13. Nbd2 {[%clk 1:23:16]} Nb6
{[%clk 1:25:03]} 14. Nf1 {[%clk 1:23:20]} Re8 {[%clk 1:23:16]} 15. Ng3
{[%clk 1:21:13]} Bf8 {[%clk 1:19:49]} 16. Nh2 {[%clk 1:08:27]} Qc8
{[%clk 1:11:40]} 17. Re3 {[%clk 0:32:25]} h6 {[%clk 0:52:48]} 18. Nh5
{[%clk 0:31:02]} Nxh5 {[%clk 0:48:55]} 19. Qxh5 {[%clk 0:31:28]} g6
{[%clk 0:45:10]} 20. Rg3 {[%clk 0:31:07]} Bg7 {[%clk 0:39:09]} 21. Qf3
{[%clk 0:31:26]} Qd8 {[%clk 0:36:27]} 22. Ng4 {[%clk 0:31:45]} Qh4
{[%clk 0:33:57]} 23. b3 {[%clk 0:25:57]} Rf8 {[%clk 0:29:15]} 24. Bd2
{[%clk 0:23:34]} Rab8 {[%clk 0:25:40]} 25. Re1 {[%clk 0:23:55]} c6
{[%clk 0:20:51]} 26. dxc6 {[%clk 0:14:34]} Bxc6 {[%clk 0:21:08]} 27. Ne3
{[%clk 0:12:50]} Kh7 {[%clk 0:16:21]} 28. Qe2 {[%clk 0:10:23]} Nd7
{[%clk 0:10:59]} 29. Rg4 {[%clk 0:08:03]} Qf6 {[%clk 0:08:29]} 30. c4
{[%clk 0:06:11]} Nc5 {[%clk 0:07:41]} 31. Nd5 {[%clk 0:06:24]} Qd8
{[%clk 0:06:49]} 32. Be3 {[%clk 0:03:16]} Ne6 {[%clk 0:05:16]} 33. Bd3
{[%clk 0:03:23]} bxc4 {[%clk 0:04:41]} 34. Bxc4 {[%clk 0:03:46]} f5
{[%clk 0:03:48]} 35. Rxg6 {[%clk 0:02:48]} Kxg6 {[%clk 0:03:04]} 36. exf5+
{[%clk 0:03:14]} Rxf5 {[%clk 0:01:27]} 37. Qg4+ {[%clk 0:03:41]} Ng5
{[%clk 0:01:43]} 38. h4 {[%clk 0:03:33]} Bxd5 {[%clk 0:00:39]} 39. Bxd5
{[%clk 0:03:04]} Qa5 {[%clk 0:00:53]} 40. Rd1 {[%clk 0:32:50]} Rb4
{[%clk 0:30:35]} 41. Bc4 {[%clk 0:24:53]} d5 {[%clk 0:21:16]} 42. hxg5
{[%clk 0:24:48]} hxg5 {[%clk 0:20:53]} 43. Bxg5 {[%clk 0:11:57]} Rxc4
{[%clk 0:10:18]} 44. bxc4 {[%clk 0:07:22]} Rxg5 {[%clk 0:10:36]} 45. Qe6+
{[%clk 0:07:46]} Kh7 {[%clk 0:10:39]} 46. cxd5 {[%clk 0:07:06]} Qa4
{[%clk 0:06:56]} 47. Rd3 {[%clk 0:06:36]} Rh5 {[%clk 0:06:41]} 48. d6
{[%clk 0:05:59]} Qf4 {[%clk 0:02:50]} 49. Rh3 {[%clk 0:05:16]} Qc1+
{[%clk 0:02:55]} 50. Kh2 {[%clk 0:05:44]} Qf4+ {[%clk 0:03:24]} 51. Kg1
{[%clk 0:06:08]} Qc1+ {[%clk 0:02:25]} 52. Kh2 {[%clk 0:06:35]} Rxh3+
{[%clk 0:02:34]} 53. gxh3 {[%clk 0:06:29]} Qf4+ {[%clk 0:02:57]} 54. Kg1
{[%clk 0:06:30]} Qg5+ {[%clk 0:03:15]} 55. Kf1 {[%clk 0:06:35]} Qh6
{[%clk 0:01:49]} 56. Qf5+ {[%clk 0:05:42]} Qg6 {[%clk 0:02:13]} 57. Qd7
{[%clk 0:05:42]} Qb1+ {[%clk 0:01:58]} 58. Kg2 {[%clk 0:06:06]} Qxa2
{[%clk 0:00:56]} 59. Qf5+ {[%clk 0:06:31]} Kh6 {[%clk 0:01:11]} 60. d7
{[%clk 0:06:12]} Qd5+ {[%clk 0:01:39]} 61. Kg3 {[%clk 0:03:06]} Qd6
{[%clk 0:02:08]} 62. Kg4 {[%clk 0:03:22]} Bf6 {[%clk 0:02:26]} 63. Qh5+
{[%clk 0:02:05]} Kg7 {[%clk 0:02:55]} 64. Qe8 {[%clk 0:02:30]} Qd3
{[%clk 0:01:06]} 65. f4 {[%clk 0:02:01]} e4 {[%clk 0:00:43]} 66. h4
{[%clk 0:01:57]} e3 {[%clk 0:00:57]} 67. f5 {[%clk 0:01:31]} Qe2+
{[%clk 0:00:35]} 68. Kf4 {[%clk 0:01:32]} Qf2+ {[%clk 0:01:04]} 69. Ke4
{[%clk 0:01:39]} Qxh4+ {[%clk 0:00:44]} 70. Kxe3 {[%clk 0:02:05]} Qg3+
{[%clk 0:00:49]} 71. Kd2 {[%clk 0:01:26]} Qf4+ {[%clk 0:01:08]} 72. Ke2
{[%clk 0:01:32]} Qg4+ {[%clk 0:01:25]} 73. Kd2 {[%clk 0:01:35]} Qxf5
{[%clk 0:00:36]} 74. d8=Q {[%clk 0:01:48]} Qg5+ {[%clk 0:00:58]} 75. Kc2
{[%clk 0:00:35]} Bxd8 {[%clk 0:01:21]} 76. Qd7+ {[%clk 0:00:49]} Be7
{[%clk 0:01:29]} 77. Qd4+ {[%clk 0:00:37]} Qf6 {[%clk 0:01:57]} 78. Qc4
{[%clk 0:00:36]} Qf5+ {[%clk 0:01:33]} 79. Kd1 {[%clk 0:00:43]} Qb1+
{[%clk 0:01:45]} 80. Kd2 {[%clk 0:00:36]} Qb4+ {[%clk 0:02:07]} 0-1

[Event "European Individual Women's Chess Championship 2017"]
[Site "Riga LAT"]
[Date "2017.04.21"]
[Round "10.31"]
[White "Badelka, Olga"]
[Black "Ozturk, Kubra"]
[Result "1-0"]
[LiveChessVersion "1.4.8"]
[BlackElo "2261"]
[WhiteElo "2362"]
[ECO "A20"]
[TimeControl "40/5400:1800+30"]

1. c4 {[%clk 1:30:57]} e5 {[%clk 1:30:49]} 2. g3 {[%clk 1:31:21]} Nf6
{[%clk 1:30:48]} 3. Bg2 {[%clk 1:31:44]} d5 {[%clk 1:31:14]} 4. cxd5
{[%clk 1:32:09]} Nxd5 {[%clk 1:31:40]} 5. Nc3 {[%clk 1:32:33]} Nb6
{[%clk 1:32:04]} 6. Nf3 {[%clk 1:32:57]} Nc6 {[%clk 1:32:26]} 7. O-O
{[%clk 1:33:21]} Be7 {[%clk 1:32:52]} 8. Rb1 {[%clk 1:33:46]} O-O
{[%clk 1:32:56]} 9. b4 {[%clk 1:34:07]} Bf5 {[%clk 1:23:10]} 10. b5
{[%clk 1:26:57]} Nd4 {[%clk 1:19:58]} 11. d3 {[%clk 1:27:06]} Bf6
{[%clk 1:03:37]} 12. Nd2 {[%clk 1:20:30]} c6 {[%clk 1:02:06]} 13. Nde4
{[%clk 1:17:28]} Nxb5 {[%clk 0:54:28]} 14. Nxb5 {[%clk 1:14:34]} cxb5
{[%clk 0:54:35]} 15. Rxb5 {[%clk 1:02:01]} Bd7 {[%clk 0:50:00]} 16. Nxf6+
{[%clk 1:01:42]} Qxf6 {[%clk 0:50:16]} 17. Ra5 {[%clk 1:02:06]} Bc6
{[%clk 0:41:44]} 18. Bxc6 {[%clk 1:01:42]} Qxc6 {[%clk 0:33:25]} 19. Rxe5
{[%clk 1:00:58]} Rfe8 {[%clk 0:30:57]} 20. Rxe8+ {[%clk 0:59:08]} Rxe8
{[%clk 0:31:26]} 21. e4 {[%clk 0:56:58]} Nd7 {[%clk 0:30:47]} 22. Be3
{[%clk 0:56:09]} a5 {[%clk 0:30:13]} 23. Qe2 {[%clk 0:51:38]} Qa6
{[%clk 0:27:51]} 24. Bd4 {[%clk 0:42:31]} Nf8 {[%clk 0:27:51]} 25. Rd1
{[%clk 0:39:17]} Ne6 {[%clk 0:27:03]} 26. Be3 {[%clk 0:35:23]} Rc8
{[%clk 0:26:39]} 27. Qb2 {[%clk 0:34:43]} a4 {[%clk 0:24:45]} 28. a3
{[%clk 0:34:05]} Rd8 {[%clk 0:24:26]} 29. d4 {[%clk 0:31:39]} Nc5
{[%clk 0:23:05]} 30. Qc2 {[%clk 0:31:25]} Nb3 {[%clk 0:23:09]} 31. Qc7
{[%clk 0:28:22]} Qd6 {[%clk 0:21:47]} 32. Qxd6 {[%clk 0:24:59]} Rxd6
{[%clk 0:22:16]} 33. d5 {[%clk 0:25:01]} Kf8 {[%clk 0:22:32]} 34. Bd2
{[%clk 0:20:15]} Rb6 {[%clk 0:19:40]} 35. Bc3 {[%clk 0:20:26]} f6
{[%clk 0:19:33]} 36. f4 {[%clk 0:18:06]} Ke8 {[%clk 0:18:54]} 37. e5
{[%clk 0:18:11]} fxe5 {[%clk 0:18:47]} 38. fxe5 {[%clk 0:18:35]} Nc5
{[%clk 0:19:08]} 39. e6 {[%clk 0:05:25]} Ne4 {[%clk 0:18:15]} 40. Bb4
{[%clk 0:35:04]} Nd6 {[%clk 0:45:45]} 41. Rc1 {[%clk 0:33:17]} 1-0